Workbook

Sheet Прайс
G1: Вес | H1: Объем | I1: Вес итого | J1: Объем итого
A2: ООО "АЙРОН КИНГ" 8-800-707-58-15 www.ironking.ru
A5: Сводная таблица
A6: ОБОРУДОВАНИЕ | F6: СТОИМОСТЬ | N6: Вес итого: | O6: =SUM(I34:I994) -> 0
P7: Гири для функционального тренинга
P8: Гантели наборные
A9: Итого | F9: =SUM(K34:K994) -> 0р. | N9: Объем итого: | O9: =SUM(J34:J994) -> 0.0
A10: Скидка
A11: Итого со скидкой
A12: НАВИГАЦИЯ ПО ПРАЙСУ Чтобы попасть в нужный раздел прайс-листа, кликните по названию раздела
A13: Тренажеры Серия REGENT | E13: Гири любительские
A14: Тренажеры Серия KAIZER | E14: Гири уральские
A15: Тренажеры Серия GERZOG | E15: Гири чемпионские
A16: Тренажеры Серия IMPERATOR | E16: Гири соревновательные
A17: Тренажеры Серия PALEY | E17: Гантели литые (круглые, гексагональные)
A18: Тренажеры для залов INVA | E18: Гантели наборные
A19: Уличное оборудование (тренажеры, воркаут) | E19: Гантели обрезиненные гексагональные
A20: ГТО | E20: Гантели профессиональные хром-резина
A21: Функциональный тренинг | E21: Грифы (50,30,25 мм)
A22: Тренажеры, стойки, скамьи, инвентарь | E22: Диски (51,31,26 мм)
A23: Покрытие | E23: Диски бамперные
A24: Покрытие | E24: Диски с 3-мя хватами
A25: Утяжелители
A26: Аксессуары (манжеты, ручки)
A27: Стандартные условия оплаты и поставки (иные согласовываем): 1. Оплата 100% по счету 2. Поставка тренажеров ориентировочно в течение 45 календарных дней с момента поступления оплаты. 3. Поставка осуществляется транспортной компанией или наемной машиной. Стоимость доставки оплачивается при получении. 4. Гарантийный срок - 12 месяцев
A28: Перечень оборудования
A29: www.ironking.ru СПОРТИВНОЕ ОБОРУДОВАНИЕ 8-800-707-58-15
A30: Наименование | C30: Цена оптовая | D30: Цена с 28.12.2020 | E30: Изображение | F30: Кол-во | G30: Вес, 1 шт. | H30: Объем, 1шт. | I30: Вес Итого | J30: Объем Итого | K30: Итого
A31: Серия REGENT
A32: Вернуться к оглавлению
A33: Грузоблочные тренажеры REGENT
A34: IK 01 Блочная рама Блочная рама - универсальный тренажер, рекомендуется для занятий спортом в спортзале и т.п. и предназначен для выполнения целого комплекса упражнений для плечевого пояса, рук, пресса, живота. Технические данные Длина, не более, мм………………………………780 Ширина, не более, мм…………………………… 840 Высота, не более, мм ……………………........... 2255 Вес, не более, кг………………………………..…165 Макс.нагрузка не более, кг……………………….150 | C34: 41,302 | D34: 59,437 | G34: 140.0 | H34: 0.85 | I34: =F34*G34 -> 0 | J34: =F34*H34 -> 0.0 | K34: =D34*F34 -> 0
A35: IK 02 Верхняя тяга Верхняя тяга, рекомендуется для занятий спортом в спортзале и т.п. и предназначена для тренировки широчайшей и круглой мышц спины, бицепсов. Технические данные Длина, не более, мм………………………………1420 Ширина, не более, мм…………………………… 1155 Высота, не более, мм ……………………............ 2390 Вес, не более, кг………………………………..…175 Макс.нагрузка, не более, кг……………………...150 | C35: 45,007 | D35: 64,769 | G35: 171.9 | H35: 0.91 | I35: 0 | J35: 0.0 | K35: 0
A36: IK 03 Кроссовер на основе реабилитационной рамы 2х90кг Рекомендуется для занятий спортом в спортзале и т.п., предназначена для комплексного развития мышц: груди, плеч, спины, бицепса, трицепса и мышц ног. Технические данные Длина, не более, мм………………………………..2735 Ширина, не более, мм……………………………..590 Высота, не более, мм ……………………..............2255 Вес, не более, кг………………………………..….315 Макс. нагрузка, не более, кг……………………...300 | C36: 66,329 | D36: 95,453 | G36: 279.0 | H36: 1.89 | I36: 0 | J36: 0.0 | K36: 0
A37: IK 04 Комбинированная тяга сверху, к поясу Комбинированная тяга, рекомендуется для занятий спортом в спортзале и т.п. и предназначена для тренировки мышц спины и бицепсов. Технические данные Длина, не более, мм………………………………2170 Ширина, не более, мм…………………………… 1155 Высота, не более, мм ……………………............ 2255 Вес, не более, кг………………………………..…220 Макс.нагрузка, не более, кг……………………...150 | C37: 52,460 | D37: 75,495 | G37: 181.0 | H37: 1.05 | I37: 0 | J37: 0.0 | K37: 0
A38: IK 05 Разгибание ног (1390*890*1675) Разгибание ног, рекомендуется для занятий спортом в спортзале и т.п. и предназначен для прокачки прямой (фронтальной), а также латеральной (боковой) мышцы бедра; детализации и рельефа квадрицепса. Технические данные Длина, не более, мм………………………………1550 Ширина, не более, мм…………………………… 895 Высота, не более, мм ……………………............ 1930 Вес, не более, кг………………………………..…200 Макс.нагрузка, не более, кг……………………...150 | C38: 53,471 | D38: 76,950 | G38: 197.3 | H38: 2.39 | I38: 0 | J38: 0.0 | K38: 0
A39: IK 06 Сведение-разведение ног Разгибание ног, рекомендуется для занятий спортом в спортзале и т.п. и предназначен для прокачки прямой (фронтальной), а также латеральной (боковой) мышцы бедра; детализации и рельефа квадрицепса. Технические данные Длина, не более, мм………………………………1550 Ширина, не более, мм…………………………… 895 Высота, не более, мм ……………………............ 1930 Вес, не более, кг………………………………..…200 Макс.нагрузка, не более, кг……………………...150 | C39: 59,436 | D39: 85,534 | G39: 170.0 | H39: 1.65 | I39: 0 | J39: 0.0 | K39: 0
A40: IK 07 (KINEO) 07 Профи, стек 60 кг Блочная рама, рекомендуется для занятий спортом в спортзале и т.п., предназначена для комплексного развития мышц: груди, плеч, спины, бицепса, трицепса и мышц ног. Технические данные Длина, не более, мм………………………………530 Ширина, не более, мм…………………………… 690 Высота, не более, мм ……………………........... 2255 Вес, не более, кг………………………………..…157 Макс. нагрузка, не более, кг……………………...150 | C40: 37,810 | D40: 54,412 | G40: 148.0 | H40: 0.93 | I40: 0 | J40: 0.0 | K40: 0
A41: IK 08 Баттерфляй - Задние дельты Баттерфляй – задние дельты, рекомендуется для занятий спортом в спортзале и т.п. и предназначен для общего развития мышц груди, а также для прокачки трапеции и задних дельт. Технические данные Длина, не более, мм………………………………1150 Ширина, не более, мм…………………………… 1230 Высота, не более, мм ……………………............ 2185 Вес, не более, кг………………………………..…210 Макс.нагрузка, не более, кг……………………...100 | C41: 55,568 | D41: 79,967 | G41: 182.0 | H41: 2.43 | I41: 0 | J41: 0.0 | K41: 0
A42: IK 09 (KINEO) 09 Профи, стек 60 кг Блочная рама, рекомендуется для занятий спортом в спортзале и т.п., предназначена для комплексного развития мышц: груди, спины, плеч, бицепса, трицепса и мышц ног. Технические данные Длина, не более, мм…………………………………..770 Ширина, не более, мм………………………………..530 Высота, не более, мм ……………………................2255 Вес, не более, кг………………………………………160 Макс. нагрузка, не более, кг…………………………..150 | C42: 41,810 | D42: 60,168 | G42: 157.0 | H42: 1.05 | I42: 0 | J42: 0.0 | K42: 0
A43: IK 10 Сгибание ног лежа Сгибание ног, рекомендуется для занятий спортом в спортзале и т.п. и предназначен для развития задней поверхности бедра (бицепса бедра) и ягодиц путем сгибания ног лежа. Технические данные Длина, не более, мм………………………………1740 Ширина, не более, мм…………………………… 830 Высота, не более, мм ……………………............ 1930 Вес, не более, кг………………………………..…185 Макс.нагрузка, не более, кг……………………...150 | C43: 51,669 | D43: 74,356 | G43: 183.2 | H43: 0.90 | I43: 0 | J43: 0.0 | K43: 0
A44: IK 11 Горизонтальная тяга Горизонтальная тяга, рекомендуется для занятий спортом в спортзале и т.п. и предназначена для развития и детализации мышц нижней части спины. также нагружает ромбовидные мышцы, средину и низ трапеций, а также нижнюю область широчайших. Технические данные Длина, не более, мм………………………………2055 Ширина, не более, мм…………………………… 840 Высота, не более, мм ……………………............ 2255 Вес, не более, кг………………………………..…180 Макс.нагрузка, не более, кг……………………...150 | C44: 48,088 | D44: 69,202 | G44: 155.0 | H44: 1.29 | I44: 0 | J44: 0.0 | K44: 0
A45: IK 12 Сгибание-разгибание ног Сгибание-разгибание ног 2в1, рекомендуется для занятий спортом в спортзале и т.п. и предназначен для сгибания и разгибания ног: для проработки прямой (фронтальной), а также латеральной (боковой) мышцы бедра; детализации и рельефа квадрицепса путем разгибания ног сидя; для развития задней поверхности бедра (бицепса бедра) и ягодиц путем сгибания ног лежа. Технические данные Длина, не более, мм………………………………1780 Ширина, не более, мм…………………………… 975 Высота, не более, мм ……………………............ 1930 Вес, не более, кг………………………………..….205 Макс.нагрузка, не более, кг……………………...150 | C45: 73,345 | D45: 105,550 | F45: 0 | G45: 191.0 | H45: 2.15 | I45: 0 | J45: 0.0 | K45: 0
A46: IK 13 Кроссовер на основе блочной рамы 2х90кг Кроссовер, рекомендуется для занятий спортом в спортзале и т.п., и предназначен для широкого ряда упражнений: развития мышц торса (пресс, грудь); рук (дельты, бицепс, трицепс) и ног (ягодичные мышцы, мышцы задней, внешней и внутренней поверхности бедра) с применением различного типа ручек. Технические данные Длина, не более, мм………………………………3845 Ширина, не более, мм…………………………… 855 Высота, не более, мм ……………………............ 2260 Вес, не более, кг………………………………..…333 Макс.нагрузка, не более, кг……………………...300 | C46: 80,239 | D46: 115,471 | G46: 317.0 | H46: 3.60 | I46: 0 | J46: 0.0 | K46: 0
A47: IK 14 Кроссовер на основе многофункциональной реабилитационной рамы 2х90кг Кроссовер рекомендуется для занятий спортом в спортзале и т.п., предназначен для комплексного развития мышц: груди, плеч, бицепса, трицепса и мышц ног. Технические данные Длина, не более, мм………………………………3195 Ширина, не более, мм…………………………… 530 Высота, не более, мм ……………………........... 2255 Вес, не более, кг………………………………..…350 Макс. нагрузка, не более, кг……………………...300 | C47: 77,029 | D47: 110,851 | G47: 307.0 | H47: 2.27 | I47: 0 | J47: 0.0 | K47: 0
A48: IK 16 Сдвоенная рама со шведской стенкой Данная рама является идеальной для занятий по программе Бубновского, полностью заменяя собой все остальное оборудование. Шведская стенка представляет собой многофункциональный тренажер, на котором можно выполнять широкий перечень упражнений на разные группы мышц. Ее дополняют две рамы, на которых можно выполнять симметричные упражнения, лучше растягивая мышцы и связки. Технические данные Длина, не более, мм………………………………3125 Ширина, не более, мм……………………………1665 Высота, не более, мм ……………………........... 2315 Вес, не более, кг………………………………..…440 Макс. нагрузка, не более, кг……………………...300 | C48: 87,729 | D48: 126,250 | G48: 431.3 | H48: 3.50 | I48: 0 | J48: 0.0 | K48: 0
A49: IK 17 Кроссовер со сдвоенной рамой Кроссовер, рекомендуется для занятий спортом в спортзале и т.п. и предназначен для широкого ряда упражнений: развития мышц торса (пресс, грудь); рук (дельты, бицепс, трицепс) и ног (ягодичные мышцы, мышцы задней, внешней и внутренней поверхности бедра) с применением различного типа ручек и манжетов. Технические данные Длина, не более, мм………………………………2735 Ширина, не более, мм…………………………… 1920 Высота, не более, мм ……………………............ 2255 Вес, не более, кг………………………………..…500 Макс.нагрузка, не более, кг……………………...300 | C49: 89,700 | D49: 132,777 | G49: 500.0 | I49: 0 | J49: 0.0 | K49: 0
A50: IK 19 Сдвоенный кроссовер на основе многофункциональной блочной рамы Многофункциональная блочная рама, рекомендуется для занятий спортом в спортзале и т.п., предназначена для комплексного развития мышц: груди, плеч, спины, бицепса, трицепса и мышц ног. Технические данные Длина, не более, мм………………………………3195 Ширина, не более, мм…………………………….1510 Высота, не более, мм ……………………..............2255 Вес, не более, кг…………………………………...665 Макс. нагрузка, не более, кг……………………...500 | C50: 142,299 | D50: 204,781 | G50: 532.0 | H50: 4.57 | I50: 0 | J50: 0.0 | K50: 0
A51: IK 20 Сдвоенная многофункциональная блочная рама Многофункциональная блочная рама, рекомендуется для занятий спортом в спортзале и т.п., предназначена для комплексного развития мышц: груди, плеч, бицепсы, трицепсы и мышцы ног. Технические данные Длина, не более, мм………………………………1510 Ширина, не более, мм…………………………….770 Высота, не более, мм ……………………..............2255 Вес, не более, кг………………………………..…360 Макс. нагрузка, не более, кг……………………...150 | C51: 72,749 | D51: 104,693 | G51: 314.5 | H51: 1.70 | I51: 0 | J51: 0.0 | K51: 0
A52: IK 29 Социальный многофункциональный тренажер Многофункциональная блочная рама, рекомендуется для занятий спортом в спортзале и т.п., предназначена для комплексного развития мышц: груди, плеч, бицепсы, трицепсы и мышцы ног. Технические данные Длина, не более, мм………………………………690 Ширина, не более, мм…………………………… 500 Высота, не более, мм ……………………........... 2265 Вес, не более, кг………………………………..…100 Макс. нагрузка, не более, кг……………………...100 | C52: 27,809 | D52: 40,019 | G52: 98.4 | H52: 0.80 | I52: 0 | J52: 0.0 | K52: 0
A53: IK 31 (KINEO 31) Оптимум, стек 90 кг Блочная рама, рекомендуется для занятий спортом в спортзале и т.п., предназначена для комплексного развития мышц: груди, спины, плеч, бицепса, трицепса и мышц ног. Технические данные Длина, не более, мм………………………………600 Ширина, не более, мм……………………………505 Высота, не более, мм …………………….............2200 Вес, не более, кг………………………………..…135 Макс. нагрузка, не более, кг……………………...150 | C53: 26,040 | D53: 37,473 | G53: 137.0 | H53: 0.92 | I53: 0 | J53: 0.0 | K53: 0
A54: IK 32 (KINEO) 32 Оптимум, стек 60 кг Многофункциональная блочная рама, рекомендуется для занятий спортом в спортзале и т.п., предназначена для комплексного развития мышц: груди, спины, плеч, бицепса, трицепса и мышц ног. Технические данные Длина, не более, мм………………………………600 Ширина, не более, мм……………………………705 Высота, не более, мм …………………….............2200 Вес, не более, кг………………………………..…140 Макс. нагрузка, не более, кг……………………...150 | C54: 33,830 | D54: 48,685 | G54: 145.0 | H54: 1.08 | I54: 0 | J54: 0.0 | K54: 0
A55: IK 34-100 Кроссовер Эконом Кроссовер рекомендуется для занятий спортом в спортзале и т.п., предназначен для комплексного развития мышц: груди, спины, плеч, бицепса, трицепса и мышц ног. Технические данные Длина, не более, мм………………………………3415 Ширина, не более, мм……………………………600 Высота, не более, мм …………………….............2250 Вес, не более, кг………………………………..…290 Макс. нагрузка, не более, кг……………………...300 | C55: 65,003 | D55: 93,545 | G55: 261.0 | H55: 1.36 | I55: 0 | J55: 0.0 | K55: 0
A56: IK 35-60 Кроссовер сдвоенный Эконом Кроссовер рекомендуется для занятий спортом в спортзале и т.п., предназначен для комплексного развития мышц: груди, спины, плеч, бицепса, трицепса и мышц ног. Технические данные Длина, не более, мм………………………………3415 Ширина, не более, мм…………………………….2030 Высота, не более, мм ……………………..............2250 Вес, не более, кг………………………………..….591 Макс. нагрузка, не более, кг……………………....600 | C56: 111,217 | D56: 160,051 | G56: 450.0 | H56: 5.00 | I56: 0 | J56: 0.0 | K56: 0
A57: IK 36 Сдвоенная рама и шведская стенка Данная рама является идеальной для занятий по программе Бубновского, полностью заменяя собой все остальное оборудование. Шведская стенка представляет собой многофункциональный тренажер, на котором можно выполнять широкий перечень упражнений на разные группы мышц. Ее дополняют две рамы, на которых можно выполнять симметричные упражнения, лучше растягивая мышцы и связки. Технические данные Длина, не более, мм………………………………3360 Ширина, не более, мм…………………………….2040 Высота, не более, мм ……………………..............2250 Вес, не более, кг………………………………..….363 Макс. нагрузка, не более, кг……………………...450 Профиль – 60х40х2 мм | C57: 72,546 | D57: 104,400 | G57: 363.0 | I57: 0 | K57: 0
A58: IK 39 Мультистанция Мультистанция, предназначена для установки в спортивном зале. Максимальное количество занимающихся на тренажере одновременно до 4-х человек. Рекомендуется для комплексного развития всех групп мышц: широчайшие, бицепс, трицепс, пресс, спина и т.д.. Технические данные Длина, не более, мм………………………………5000 Ширина, не более, мм…………………………….3830 Высота, не более, мм …………………….............2375 Вес, не более, кг………………………………..….905 Макс. нагрузка, не более, кг……………………....500 | C58: 212,823 | D58: 306,272 | G58: 739.0 | H58: 7.67 | I58: 0 | J58: =F58*H58 -> 0.0 | K58: 0
A59: IK 41 Три рамы и шведская стенка Данный тренажер, рекомендуется для занятий спортом в спортзале и т.п., предназначен для комплексного развития мышц: груди, плеч, спины, бицепса, трицепса и мышц ног. Технические данные Длина, не более, мм………………………………3345 Ширина, не более, мм……………………………1620 Высота, не более, мм ……………………........... 2295 Вес, не более, кг………………………………..…565 Макс. нагрузка, не более, кг……………………...300 | C59: 122,729 | D59: 176,618 | G59: 559.0 | H59: 4.00 | I59: 0 | J59: =F59*H59 -> 0.0 | K59: 0
A60: IK 42 Голень машина Голень машина предназначена для тренировки мышц голени в положении стоя | C60: 49,700 | D60: 71,523 | I60: 0 | J60: =F60*H60 -> 0.0 | K60: 0
A61: IK 44 Кроссовер Кроссовер, рекомендуется для занятий спортом в спортзале и т.п., и предназначен для широкого ряда упражнений: развития мышц торса (пресс, грудь); рук (дельты, бицепс, трицепс) и ног (ягодичные мышцы, мышцы задней, внешней и внутренней поверхности бедра) с применением различного типа ручек. Технические данные Длина, не более, мм………………………………3420 Ширина, не более, мм…………………………….610 Высота, не более, мм …………………….............2250 Вес, не более, кг………………………………..…315 Макс.нагрузка, не более, кг……………………...300 | C61: 85,279 | D61: 122,724 | G61: 315.0 | I61: 0 | K61: 0
A62: IK 46 Кроссовер (2450 мм, 2*90 кг) Кроссовер, рекомендуется для занятий спортом в спортзале и т.п. и предназначен для широкого ряда упражнений: развития мышц торса (пресс, грудь); рук (дельты, бицепс, трицепс) и ног (ягодичные мышцы, мышцы задней, внешней и внутренней поверхности бедра) с применением различного типа ручек и манжетов. Технические данные Длина, не более, мм………………………………3500 Ширина, не более, мм…………………………… 530 Высота, не более, мм ……………………............ 2450 Вес, не более, кг………………………………..…354 Макс.нагрузка, не более, кг……………………...300 | C62: 76,933 | D62: 110,714 | G62: 354.0 | H62: 1.81 | I62: 0 | J62: =F62*H62 -> 0.0 | K62: 0
A63: IK 47 Кроссовер (2450 мм, 3*90 кг) Кроссовер, рекомендуется для занятий спортом в спортзале и т.п. и предназначен для широкого ряда упражнений: развития мышц торса (пресс, грудь); рук (дельты, бицепс, трицепс) и ног (ягодичные мышцы, мышцы задней, внешней и внутренней поверхности бедра) с применением различного типа ручек и манжетов. Технические данные Длина, не более, мм………………………………3500 Ширина, не более, мм…………………………… 530 Высота, не более, мм ……………………............ 2450 Вес, не более, кг………………………………..…354 Макс.нагрузка, не более, кг……………………...300 | C63: 110,959 | D63: 159,681 | G63: 515.0 | H63: 2.00 | I63: 0 | J63: =F63*H63 -> 0.0 | K63: =D63*F63 -> 0
A64: IK 50 (KINEO 10) Блочная рама профи Тренажер KINEO 10 – это многофункциональная домашняя блочная рама, которая рекомендуется для занятий спортом домашних условиях, предназначена для комплексного развития мышц: груди, спины, плеч, бицепса и мышц рук. Технические данные Длина, не более, мм…………………………………..1080 Ширина, не более, мм………………………………..1110 Высота, не более, мм ……………………................2255 Вес, не более, кг………………………………………125 Макс. нагрузка, не более, кг…………………………..150 | C64: 51,039 | D64: 73,449 | G64: 137.0 | H64: 1.78 | I64: 0 | J64: =F64*H64 -> 0.0 | K64: 0
A65: IK 51 Эффект норма Тренажер «Эффект норма» предназначен для широкого диапазона упражнений по развитию мышц пресса, груди, всех мышц рук и ног, а также реабилитационных упражнений при заболеваниях: остеохондроз, боли в шее, суставах и т.д.. Технические данные Длина, не более, мм………………………………350 Ширина, не более, мм……………………………330 Высота, не более, мм …………………….............2010 Вес, не более, кг………………………………..…85 Макс. нагрузка, не более, кг……………………...150 | C65: 19,300 | D65: 34,394 | G65: 83.3 | I65: 0 | J65: =F65*H65 -> 0.0 | K65: 0
A66: IK 327 Рычажная тяга Рычажная тяга предназначена для точечной проработки широчайшей мышцы спины (широкий хват) и мышцы вдоль позвоночника (узкий хват). Технические данные Длина, не более, мм………………………………1685 Ширина, не более, мм…………………………….760 Высота, не более, мм …………………….............1830 Вес, не более, кг………………………………..…207,5 Макс.нагрузка, не более, кг……………………...150 | C66: 72,439 | D66: 104,246 | G66: 207.5 | I66: 0 | J66: =F66*H66 -> 0.0 | K66: 0
A67: Комплектация "Люкс" IK 115 Скамья с изменяемым наклоном спинки (эконом) 2 манжеты IK611 на голень IK 903-sp ручка для тяги прямая, короткая Цепь-удлинитель | C67: 7,300 | D67: 10,504 | K67: 0
A68: Комплектация "Норма" 2 манжеты IK611 на голень IK 903-sp ручка для тяги прямая, короткая Цепь-удлинитель | C68: 3,000 | D68: 4,317 | K68: 0
A69: Тренажеры на свободных весах REGENT
A70: IK 205 Стан для приседаний Стан для приседаний предназначен для безопасных приседаний со штангой, а дополнительные штыри по бокам стойки предназначены для близкого и удобного расположения весов. Технические данные Длина, не более, мм………………………………1340 Ширина, не более, мм…………………………….1815 Высота, не более, мм ……………………..............1795 Вес, не более, кг………………………………..…85 Макс. нагрузка, не более, кг……………………...350 | C70: 22,710 | D70: 32,681 | G70: 85.0 | H70: 0.36 | I70: =F70*G70 -> 0 | J70: =F70*H70 -> 0.0 | K70: =D70*F70 -> 0
A71: IK 206 Стойка для жима лежа и приседаний Стойка для жима лежа и приседаний предназначена для выполнения упражнений со штангой. Технические данные Длина, не более, мм……………………………….1440 Ширина, не более, мм…………………………….605 Высота, не более, мм ……………………..............1595 Вес, не более, кг………………………………..…23 Маrс. нагрузка, не более, кг……………………...300 | C71: 8,280 | D71: 11,915 | G71: 20.0 | H71: 0.78 | I71: 0 | J71: 0.0 | K71: 0
A72: IK 303 Силовая рама Рама для приседаний предназначена для безопасных приседаний со штангой. Технические данные Длина, не более, мм………………………………1410 Ширина, не более, мм…………………………….1300 Высота, не более, мм ……………………..............2090 Вес, не более, кг………………………………...…117 Макс. нагрузка, не более, кг……………………...700 | C72: 25,630 | D72: 36,884 | G72: 78.0 | H72: 0.68 | I72: 0 | J72: 0.0 | K72: 0
A73: IK 305 Машина Смитта с противовесом Машина Смитта, рекомендуется для занятий спортом в спортзале и т.п., и предназначена для выполнения всех видов жима и приседаний. Технические данные Длина, не более, мм………………………………2240 Ширина, не более, мм…………………………… 1040 Высота, не более, мм ……………………............ 2190 Вес, не более, кг………………………………..…191 Макс.нагрузка, не более, кг……………………...350 | C73: 69,593 | D73: 100,150 | G73: 153.0 | H73: 0.90 | I73: 0 | J73: 0.0 | K73: 0
A74: IK 307 Голень станок сидя Римский стул предназначен для развития прямых и косых мышц пресса Технические данные Длина, не более, мм………………………………1445 Ширина, не более, мм…………………………….610 Высота, не более, мм ……………………..............1170 Вес, не более, кг………………………………..…28 Макс. нагрузка, не более, кг……………………...150 | C74: 24,967 | D74: 35,930 | G74: 44.0 | H74: 0.82 | I74: 0 | J74: 0.0 | K74: 0
A75: IK 308 Т-тяга Т-тяга рекомендуется для занятий спортом в спортзале и т.п. и предназначена для проработки широчайшей мышцы спины, круглой мышцы спины и бицепсов. Технические данные Длина, не более, мм………………………………2290 Ширина, не более, мм…………………………….840 Высота, не более, мм ……………………..............455 Вес, не более, кг…………………………………..47 Макс. нагрузка, не более, кг……………………...300 | C75: 20,734 | D75: 29,837 | G75: 46.8 | H75: 0.90 | I75: 0 | J75: 0.0 | K75: 0
A76: IK 312 Жим ногами на свободных весах (2290*1540*1390) Жим ногами предназначен для прокачки внутренней стороны квадрицепса, а также задней части бедра, выделения «капли» над коленом. Технические данные Длина, не более, мм………………………….……2280 Ширина, не более, мм……………………….…….990 Высота, не более, мм ……………………..............1610 Вес, не более, кг………………………………...….205 Макс. нагрузка, не более, кг…………………….....600 | C76: 65,944 | D76: 94,899 | G76: 174.0 | H76: 3.48 | I76: 0 | J76: 0.0 | K76: 0
A77: IK 313 Гакк-машина Гакк–машина предназначена для развития квадрицепса и ягодичных мышц. Технические данные Длина, не более, мм………………………………870 Ширина, не более, мм…………………………….2215 Высота, не более, мм ……………………..............1660 Вес, не более, кг………………………………..….194 Макс. нагрузка, не более, кг……………………...500 | C77: 67,477 | D77: 97,106 | G77: 194.0 | H77: 4.73 | I77: 0 | J77: 0.0 | K77: 0
A78: IK 316 Дельта-машина Дельта–машина предназначена для тренировки дельтовидных мышц верхнего плечевого пояса. Технические данные Длина, не более, мм………………………………1130 Ширина, не более, мм…………………………….1310 (рабочая 1850) Высота, не более, мм ……………………..............1125 Вес, не более, кг………………………………..…63 Макс. нагрузка, не более, кг……………………...200 | C78: 38,340 | D78: 55,174 | G78: 62.5 | H78: 1.77 | I78: 0 | J78: 0.0 | K78: 0
A79: IK 317 Баттерфляй - задние дельты,свободный вес Баттерфляй – задние дельты, рекомендуется для занятий спортом в спортзале и т.п. и предназначен для общего развития мышц груди, а также для прокачки трапеции и задних дельт. Технические данные Длина, не более, мм………………………………1440 Ширина, не более, мм…………………………… 1215 Высота, не более, мм ……………………............ 2185 Вес, не более, кг………………………………..…133 Макс.нагрузка, не более, кг……………………...150 | C79: 38,340 | D79: 55,174 | G79: 132.2 | H79: 4.13 | I79: 0 | J79: 0.0 | K79: 0
A80: IK 320 Рычажная тяга Рычажная тяга предназначена для точечной проработки широчайшей мышцы спины (широкий хват) и мышцы вдоль позвоночника (узкий хват). Технические данные Длина, не более, мм………………………………1630 Ширина, не более, мм…………………………….925 Высота, не более, мм ……………………..............1160 Вес, не более, кг………………………………..…90 Макс. нагрузка, не более, кг……………………...300 | C80: 48,795 | D80: 70,221 | G80: 88.8 | H80: 1.32 | I80: 0 | J80: 0.0 | K80: 0
A81: IK 321 Тяга вниз спереди Тренажер тяга вниз предназначен для проработки широчайших мышц и других мышц верхней части спины; вторичная нагрузка: бицепсы и мышцы плеча. Технические данные Длина, не более, мм………………………………1385 Ширина, не более, мм…………………………….1255 Высота, не более, мм ……………………..............2050 Вес, не более, кг………………………………..…73 Макс. нагрузка, не более, кг……………………...350 | C81: 36,628 | D81: 52,710 | G81: 72.0 | H81: 1.30 | I81: 0 | J81: 0.0 | K81: 0
A82: IK 322 Бицепс машина Бицепс машина предназначена для проработки данной мышцы. Технические данные Длина, не более, мм………………………………1250 Ширина, не более, мм…………………………….840 Высота, не более, мм ……………………..............965 Вес, не более, кг………………………………..….60,5 Макс.нагрузка, не более, кг……………………....350 | C82: 42,698 | D82: 61,446 | G82: 60.3 | I82: 0 | J82: 0.0 | K82: 0
A83: IK 326 Трицепс-машина Шведская стенка на свободном весе, рекомендуется для занятий спортом в домашних условиях, предназначена для комплексного развития мышц: груди, плеч, бицепсы, трицепсы. Технические данные Длина, не более, мм………………………………1170 Ширина, не более, мм……………………………1165 Высота, не более, мм ……………………........... 2440 Вес, не более, кг………………………………..…89 Макс. нагрузка, не более, кг……………………...150 | C83: 42,698 | D83: 61,446 | G83: 74.0 | I83: 0 | J83: 0.0 | K83: 0
A84: IK 328 Силовая рама Профиль – 80х40 мм; ДхШхВ – 1110х1280х2300 мм; Вес – 117 кг; Максимальная нагрузка – 400 кг. | C84: 20,990 | D84: 30,206 | K84: 0
A85: Тренажеры под собственным весом REGENT | K85: 0
A86: IK 301 Гиперэкстензия горизонтальная Гиперэкстензия, рекомендуется для занятий спортом в спортзале и т.п. и предназначена для проработки мышц спины, ягодичных и икроножных мышц. Технические данные Длина, не более, мм………………………………1250 Ширина, не более, мм…………………………….640 Высота, не более, мм ……………………..............907 Вес, не более, кг………………………………...…23 Макс. нагрузка, не более, кг……………………...150 | C86: 16,990 | D86: 24,450 | G86: 23.0 | H86: 0.65 | I86: =F86*G86 -> 0 | J86: =F86*H86 -> 0.0 | K86: 0
A87: IK 302 Гиперэкстензия 45гр. Гиперэкстензия 45 градусов, рекомендуется для занятий спортом в спортзале и т.п. и предназначена для проработки мышц спины и икроножных мышц ног. Технические данные Длина, не более, мм………………………………1345 Ширина, не более, мм…………………………….880 Высота, не более, мм ……………………..............800 Вес, не более, кг………………………………..…31 Макс. нагрузка, не более, кг……………………...150 | C87: 17,041 | D87: 24,523 | G87: 30.0 | H87: 0.68 | I87: 0 | J87: 0.0 | K87: 0
A88: IK 304 Пресс-брусья Тренажер пресс – брусья профессиональные предназначен для выполнения упражнений на брюшной пресс, грудные мышцы, трицепс. Технические данные Длина, не более, мм………………………………1040 Ширина, не более, мм…………………………….695 Высота, не более, мм ……………………..............1750 Вес, не более, кг………………………………..…75 Макс. нагрузка, не более, кг……………………...200 | C88: 20,423 | D88: 29,390 | G88: 55.0 | H88: 0.49 | I88: 0 | J88: 0.0 | K88: 0
A89: IK 306 Римский стул Римский стул предназначен для развития прямых и косых мышц пресса. Технические данные Длина, не более, мм………………………………1445 Ширина, не более, мм…………………………….610 Высота, не более, мм ……………………..............1170 Вес, не более, кг………………………………..…28 Макс. нагрузка, не более, кг……………………...150 | C89: 15,759 | D89: 22,679 | G89: 27.5 | H89: 0.98 | I89: 0 | J89: 0.0 | K89: 0
A90: IK 310 Шведская стенка с навесным оборудованием Шведская стенка с навесным оборудованием предназначена для развития плечевого пояса, грудной клетки и брюшного пресса. Технические данные Длина, не более, мм………………………………1085 Ширина, не более, мм…………………………….1165 Высота, не более, мм ……………………..............2210 Вес, не более, кг………………………………..…60 Макс. нагрузка, не более, кг……………………...150 | C90: 15,724 | D90: 22,628 | G90: 60.0 | H90: 0.55 | I90: 0 | J90: 0.0 | K90: 0
A91: IK 311 Турник-пресс-брусья Тренажер пресс–брусья домашние предназначен для выполнения упражнений на брюшной пресс, грудные мышцы, плечевой пояс. Технические данные Длина, не более, мм………………………………1335 Ширина, не более, мм…………………………….1140 Высота, не более, мм …………………….............. 2340 Вес, не более, кг………………………………..…87 Макс. нагрузка, не более, кг……………………...150 | C91: 21,566 | D91: 31,035 | G91: 64.0 | H91: 0.60 | I91: 0 | J91: 0.0 | K91: 0
A92: IK 315 Брусья раздвижные Тренажер брусья раздвижные предназначен для развития мышц плечевого пояса, дельтовидных мышц и трицепса. Технические данные Длина, не более, мм………………………………1040 Ширина, не более, мм…………………………….1110 Высота, не более, мм ……………………..............1500 Вес, не более, кг………………………………..…58 Макс. нагрузка, не более, кг……………………...150 | C92: 19,936 | D92: 28,690 | G92: 58.0 | H92: 0.33 | I92: 0 | J92: 0.0 | K92: 0
A93: Скамьи REGENT | K93: 0
A94: IK 102 Скамья для пресса регулируемая Скамья, рекомендуется для занятий спортом в спортзале и т.п. и предназначена для выполнения упражнения «сжатие» - подъем корпуса к коленям, что оказывает непосредственную нагрузку на переднюю стенку брюшного пресса. Технические данные Длина, не более, мм………………………………1570 Ширина, не более, мм…………………………….560 Высота, не более, мм ……………………..............1180 Вес, не более, кг………………………………..….42 Макс. нагрузка, не более, кг……………………...150 | C94: 16,001 | D94: 23,027 | G94: 37.0 | H94: 0.39 | I94: =F94*G94 -> 0 | J94: =F94*H94 -> 0.0 | K94: 0
A95: IK 103 Скамья для жима сидя Скамья для жима сидя, рекомендуется для занятий спортом в спортзале и т.п. и предназначена для развития дельтовидных мышц, а также мышц груди. Технические данные Длина, не более, мм………………………………1315 Ширина, не более, мм…………………………….1295 Высота, не более, мм ……………………..............1755 Вес, не более, кг………………………………..…95 Макс. нагрузка, не более, кг……………………...300 | C95: 23,764 | D95: 34,198 | G95: 89.0 | H95: 1.54 | I95: 0 | J95: 0.0 | K95: 0
A96: IK 104 Скамья для жима лежа Скамья для жима лежа, рекомендуется для занятий спортом в спортзале и т.п. и предназначен для развития дельтовидных мышц, а также для активного развития мышц груди. Технические данные Длина, не более, мм………………………………1700 Ширина, не более, мм…………………………….1500 Высота, не более, мм ……………………..............1225 Вес, не более, кг………………………………..…104 Макс. нагрузка, не более, кг……………………...300 | C96: 19,216 | D96: 27,653 | G96: 69.0 | H96: 1.77 | I96: 0 | J96: 0.0 | K96: 0
A97: IK 105 Наклонная скамья для жима лежа со стойками Наклонная скамья для жима лежа, рекомендуется для занятий спортом в спортзале и т.п. и предназначена для жима штанги лежа, что интенсивно нагружает верхнюю область грудных мышц, а также передние дельты и трицепсы. Технические данные Длина, не более, мм………………………………1690 Ширина, не более, мм…………………………….1500 Высота, не более, мм ……………………..............1300 Вес, не более, кг………………………………..…89 Макс. нагрузка, не более, кг……………………...300 | C97: 23,275 | D97: 33,494 | G97: 64.0 | H97: 0.56 | I97: 0 | J97: 0.0 | K97: 0
A98: IK 106 Скамья Скотта Скамья Скотта, рекомендуется для занятий спортом в спортзале и т.п. и предназначена для тренировки бицепса со штангой или гантелями. Технические данные Длина, не более, мм………………………………1125 Ширина, не более, мм…………………………….840 Высота, не более, мм ……………………..............995 Вес, не более, кг………………………………..…35 Макс. нагрузка, не более, кг……………………...300 | C98: 14,983 | D98: 21,562 | G98: 30.0 | H98: 0.14 | I98: 0 | J98: 0.0 | K98: 0
A99: IK 107 Скамья горизонтальная Скамья горизонтальная, рекомендуется для занятий спортом в спортзале и т.п. и предназначена для упражнений с гантелями и тренировки мышц брюшного пресса. Технические данные Длина, не более, мм………………………………1250 Ширина, не более, мм…………………………….400 Высота, не более, мм ……………………..............460 Вес, не более, кг………………………………..…20 Макс. нагрузка, не более, кг……………………...300 | C99: 8,002 | D99: 11,515 | G99: 20.0 | H99: 0.36 | I99: 0 | J99: 0.0 | K99: =D99*F99 -> 0
A100: IK 108 Скамья для пресса и спины Скамья для пресса и спины, рекомендуется для занятий спортом в спортзале и т.п. и предназначена для упражнений для мышц спины и пресса. Технические данные Длина, не более, мм………………………………1620 Ширина, не более, мм…………………………….510 Высота, не более, мм ……………………..............920 Вес, не более, кг………………………………..…24 Макс. нагрузка, не более, кг……………………...150 | C100: 9,457 | D100: 13,609 | G100: 26.0 | H100: 0.92 | I100: 0 | J100: 0.0 | K100: 0
A101: IK109 Скамья универсальная | D101: 19,145 | K101: 0
A102: IK 110 Скамья с изменяемым углом наклона спинки Скамья с изменяемым наклоном спинки, рекомендуется для занятий спортом в спортзале и т.п. и предназначена для тренировки мышц спины, брюшного пресса, верхнего плечевого пояса. Технические данные Длина, не более, мм………………………………1300 Ширина, не более, мм…………………………….540 Высота, не более, мм ……………………..............1265 Вес, не более, кг………………………………..…30 Макс. нагрузка, не более, кг……………………...150 | C102: 17,457 | D102: 25,122 | G102: 27.2 | H102: 0.40 | I102: 0 | J102: 0.0 | K102: 0
A103: IK 111 Скамья для французского жима Скамья для французского жима, рекомендуется для занятий спортом в спортзале и т.п. и предназначена для выполнения упражнения «французский жим». Упражнение на скамье для жима лежа дает нагрузку на внутренний и средний пучок трицепса, изолируя при этом трехглавые мышцы. Скамья для жима лежа обеспечивает проработку одной группы мышц. Технические данные Длина, не более, мм………………………………1440 Ширина, не более, мм…………………………….890 Высота, не более, мм ……………………..............1215 Вес, не более, кг………………………………..…55 Макс. нагрузка, не более, кг……………………...300 | C103: 20,366 | D103: 29,308 | G103: 60.0 | H103: 0.77 | I103: 0 | J103: 0.0 | K103: 0
A104: IK 112 Скамья для жима под отрицательным углом Тренажер скамья для жима лежа под отрицательным углом, рекомендуется для занятий спортом в спортзале и т.п. и предназначена для жима штанги лежа, что интенсивно нагружает верхнюю область грудных мышц, а также передние дельты и трицепсы. Технические данные Длина, не более, мм………………………………1935 Ширина, не более, мм…………………………….1500 Высота, не более, мм ……………………..............1215 Вес, не более, кг………………………………..…97 Макс. нагрузка, не более, кг……………………...300 | C104: 21,783 | D104: 31,348 | G104: 98.4 | H104: 0.41 | I104: 0 | J104: 0.0 | K104: 0
A105: IK 113 Скамья универсальная мобильная Скамья универсальная мобильная, рекомендуется для занятий спортом в спортзале и т.п., и предназначена для тренировки мышц спины, брюшного пресса, верхнего плечевого пояса. Технические данные Длина, не более, мм………………………………1325 Ширина, не более, мм…………………………….540 Высота, не более, мм ……………………..............1255 Вес, не более, кг………………………………..…30 Макс. нагрузка, не более, кг……………………...250 | C105: 18,780 | D105: 27,026 | G105: 31.0 | H105: 0.39 | I105: 0 | J105: 0.0 | K105: 0
A106: IK114 Скамья для жима лежа (параолимпийская) | D106: 28,505 | K106: 0
A107: IK 115 Скамья с изменяемым наклоном спинки (эконом) Скамья с изменяемым наклоном спинки, рекомендуется для занятий спортом в спортзале и т.п. и предназначена для тренировки мышц спины, брюшного пресса, верхнего плечевого пояса. Технические данные Длина, не более, мм………………………………1270 Ширина, не более, мм…………………………….510 Высота, не более, мм ……………………..............1260 Вес, не более, кг………………………………..…15 Макс. нагрузка, не более, кг……………………...100 | D107: 12,380 | K107: 0
A108: IK118 Скамья для жима лежа с рычажным механизмом | C108: 8,603 | D108: 37,976 | G108: 18.0 | H108: 0.28 | I108: 0 | J108: 0.0 | K108: 0
A109: Стойки для дисков и грифов REGENT | K109: 0
A110: IK 201 Стойка для дисков диаметром 51мм Стойка для дисков предназначена для хранения тренировочных блинов и олимпийских дисков, посадочный диаметр которых составляет 51 мм. Технические данные Длина, не более, мм………………………………810 Ширина, не более, мм…………………………….670 Высота, не более, мм ……………………..............950 Вес, не более, кг………………………………..…25 Макс. нагрузка, не более, кг……………………...400 | C110: 7,711 | D110: 11,097 | G110: 32.0 | H110: 0.47 | I110: =F110*G110 -> 0 | J110: =F110*H110 -> 0.0 | K110: 0
A111: IK 202 Стойка для грифов Стойка для грифов предназначена для хранения тренировочных грифов, посадочный диаметр которых составляет 31 мм. Технические данные Длина, не более, мм………………………………540 Ширина, не более, мм…………………………….810 Высота, не более, мм ……………………..............1210 Вес, не более, кг………………………………..…35 Макс. нагрузка, не более, кг……………………...150 | C111: 10,957 | D111: 15,768 | G111: 35.0 | H111: 0.44 | I111: 0 | J111: 0.0 | K111: 0
A112: IK 207 Стойка для дисков диаметром 26мм Стойка для дисков диаметром 26 мм предназначена для хранения дисков с диаметром втулки 26 мм. Технические данные Длина, не более, мм………………………………640 Ширина, не более, мм…………………………….670 Высота, не более, мм ……………………..............1110 Вес, не более, кг………………………………..…20,5 Макс. нагрузка, не более, кг……………………...300 | C112: 3,270 | D112: 4,706 | G112: 17.0 | H112: 0.81 | I112: 0 | J112: 0.0 | K112: 0
A113: IK 208 Стойка для грифов и дисков диаметром 26мм Стойка для дисков и грифов диаметром 26 мм предназначена для хранения дисков и грифов диаметром 26 мм. Технические данные Длина, не более, мм………………………………640 Ширина, не более, мм…………………………….670 Высота, не более, мм ……………………..............1110 Вес, не более, кг………………………………..…21,5 Макс. нагрузка, не более, кг……………………...300 | C113: 4,077 | D113: 5,867 | G113: 21.2 | H113: 0.25 | I113: 0 | J113: 0.0 | K113: 0
A114: IK 211 Стойка для хранения дисков 51мм (9 мест) Стойка для дисков предназначена для хранения тренировочных блинов и олимпийских дисков, посадочный диаметр которых составляет 51 мм. Технические данные Длина, не более, мм………………………………1320 Ширина, не более, мм…………………………….670 Высота, не более, мм ……………………..............1400 Вес, не более, кг………………………………..…30 Макс. нагрузка, не более, кг……………………...550 | C114: 13,202 | D114: 18,999 | G114: 29.0 | H114: 0.33 | I114: 0 | J114: 0.0 | K114: 0
A115: IK 212 Стойка для грифов гантельных Стойка для грифов гантельных предназначена для хранения тренировочных гантельных грифов. Технические данные Длина, не более, мм………………………………340 Ширина, не более, мм…………………………….280 Высота, не более, мм ……………………..............370 Вес, не более, кг………………………………..…10,3 Макс. нагрузка, не более, кг……………………...50 | C115: 3,668 | D115: 5,279 | G115: 10.3 | H115: 0.33 | I115: 0 | J115: 0.0 | K115: 0
A116: IK220 Стойка универсальная для хранения дисков и грифов | D116: 25,246 | K116: 0
A117: IK 222 Стойка для грифов на 14 шт. Стойка предназначена для хранения грифов с диаметром рукояти до 30 мм. Технические данные Длина, не более, мм………………………………1095 Ширина, не более, мм…………………………….840 Высота, не более, мм ……………………..............1315 Вес, не более, кг………………………………..…72 Макс. нагрузка, не более, кг……………………...400 | C117: 19,738 | D117: 28,405 | G117: 71.5 | H117: 0.60 | I117: 0 | J117: 0.0 | K117: 0
A118: IK 223 Стойка для неразборных штанг на 8 шт. Стойка предназначена для хранения наборных штанг с диаметром рукояти до 30 мм. Технические данные Длина, не более, мм………………………………1095 Ширина, не более, мм…………………………….840 Высота, не более, мм ……………………..............1315 Вес, не более, кг………………………………..…66 Макс. нагрузка, не более, кг……………………...500 | C118: 18,420 | D118: 26,508 | G118: 66.0 | H118: 0.60 | I118: 0 | J118: 0.0 | K118: 0
A119: Стойки для гантелей REGENT | K119: 0
A120: IK 203 Стойка для профессиональных гантелей 2-х ярусная на 10 пар горизонтальная Стойка для гантелей предназначена для хранения профессиональных гантелей. Технические данные Длина, не более, мм………………………………2180 Ширина, не более, мм…………………………….640 Высота, не более, мм ……………………..............695 Вес, не более, кг………………………………..…65 Макс. нагрузка, не более, кг……………………...500 | C120: 13,057 | D120: 19,593 | G120: 43.0 | H120: 0.16 | I120: =F120*G120 -> 0 | J120: =F120*H120 -> 0.0 | K120: 0
A121: IK 204 Стойка для профессиональных гантелей вертикальная на 7 пар Стойка для гантелей предназначена для хранения профессиональных гантелей. Технические данные Длина, не более, мм………………………………..470 Ширина, не более, мм……………………………...440 Высота, не более, мм ……………………................1550 Вес, не более, кг…………………………………....27 Макс. нагрузка, не более, кг…………………….....200 | C121: 10,402 | D121: 14,969 | G121: 27.0 | H121: 0.32 | I121: 0 | J121: 0.0 | K121: 0
A122: IK 209 Стойка для профессиональных гантелей 3-х ярусная на 12 пар Стойка для гантелей предназначена для хранения профессиональных гантелей. Технические данные Длина, не более, мм………………………………1740 Ширина, не более, мм…………………………….888 Высота, не более, мм ……………………..............995 Вес, не более, кг………………………………..…85 Макс. нагрузка, не более, кг……………………...500 | C122: 20,003 | D122: 30,016 | G122: 84.6 | H122: 1.68 | I122: 0 | J122: 0.0 | K122: 0
A123: IK 210 Стойка для литых гантелей (12 пар) Стойка для литых гантелей на 12 пар предназначена для хранения тренировочных литых гантелей. Технические данные Длина, не более, мм………………………………470 Ширина, не более, мм…………………………….440 Высота, не более, мм ……………………..............1655 Вес, не более, кг………………………………..…30 Макс. нагрузка, не более, кг……………………...200 | C123: 11,186 | D123: 16,097 | G123: 30.0 | H123: 0.33 | I123: 0 | J123: 0.0 | K123: 0
A124: IK 213 Стойка для профессиональных гантелей на 12 пар горизонтальная Стойка для гантелей предназначена для хранения профессиональных гантелей. Технические данные Длина, не более, мм………………………………2620 Ширина, не более, мм…………………………….640 Высота, не более, мм ……………………..............700 Вес, не более, кг………………………………..…83 Макс. нагрузка, не более, кг……………………...500 | C124: 15,802 | D124: 23,712 | G124: 83.0 | H124: 1.68 | I124: 0 | J124: 0.0 | K124: 0
A125: IK 214 Стойка для профессиональных гантелей на 15 пар горизонтальная Стойка для гантелей предназначена для хранения профессиональных гантелей. Технические данные Длина, не более, мм………………………………3280 Ширина, не более, мм…………………………….640 Высота, не более, мм ……………………..............700 Вес, не более, кг………………………………..…80 Макс. нагрузка, не более, кг……………………...600 | C125: 16,931 | D125: 25,406 | G125: 79.8 | H125: 1.68 | I125: 0 | J125: 0.0 | K125: 0
A126: IK 215 Стойка для профессиональных гантелей 3х ярусная на 18 пар Стойка для гантелей предназначена для хранения профессиональных гантелей. Технические данные Длина, не более, мм………………………………2620 Ширина, не более, мм…………………………….890 Высота, не более, мм ……………………..............1045 Вес, не более, кг………………………………..…135 Макс. нагрузка, не более, кг……………………...600 | C126: 19,102 | D126: 28,664 | G126: 90.0 | H126: 0.39 | I126: 0 | J126: 0.0 | K126: 0
A127: IK 216 Стойка для гексагональных гантелей на 9 пар (для комплекта 2-10 кг) Стойка для литых гантелей на 9 пар предназначена для хранения литых гантелей разного веса. Технические данные Длина, не более, мм………………………………820 Ширина, не более, мм…………………………….640 Высота, не более, мм ……………………..............1210 Вес, не более, кг………………………………..….26 Макс. нагрузка, не более, кг……………………....200 | C127: 4,721 | D127: 6,793 | G127: 22.0 | H127: 0.12 | I127: 0 | J127: 0.0 | K127: 0
A128: IK 217 Стойка для гексагональных гантелей на 6 пар (для комплекта 10-20 кг.) Стойка для гексагональных гантелей предназначена для хранения литых гантелей весом от 10 до 20 кг. Технические данные Длина, не более, мм………………………………640 Ширина, не более, мм…………………………….820 Высота, не более, мм ……………………..............955 Вес, не более, кг………………………………..…19 Макс. нагрузка, не более, кг……………………...200 | C128: 4,321 | D128: 6,218 | G128: 19.0 | H128: 0.44 | I128: 0 | J128: 0.0 | K128: 0
A129: IK 221 Стойка для профессиональных гантелей 2-х ярусная на 6 пар Стойка для гантелей предназначена для хранения профессиональных гантелей. Технические данные Длина, не более, мм………………………………1300 Ширина, не более, мм…………………………….640 Высота, не более, мм ……………………..............700 Вес, не более, кг………………………………..…48 Макс. нагрузка, не более, кг……………………...300 | C129: 10,805 | D129: 16,214 | G129: 48.0 | H129: 0.20 | I129: 0 | J129: 0.0 | K129: 0
A130: IK 224 Стойка для гексагональных гантелей на 10 пар Стойка предназначена для хранения гексагональных обрезиненных гантелей. Технические данные Длина, не более, мм………………………………1860 Ширина, не более, мм…………………………….640 Высота, не более, мм ……………………..............700 Вес, не более, кг………………………………..…52,5 Макс. нагрузка, не более, кг……………………...600 | C130: 13,573 | D130: 20,368 | G130: 52.2 | H130: 0.30 | I130: 0 | J130: 0.0 | K130: 0
A131: IK 225 Стойка для гексагональных гантелей на 7 пар Стойка предназначена для хранения гексагональных обрезиненных гантелей весом от 4 до 10 кг. Технические данные Длина, не более, мм………………………………820 Ширина, не более, мм…………………………….640 Высота, не более, мм ……………………..............1145 Вес, не более, кг………………………………..…24,5 Макс. нагрузка, не более, кг……………………...300 | C131: 4,926 | D131: 7,088 | G131: 22.0 | H131: 0.66 | I131: 0 | J131: 0.0 | K131: 0
A132: Стойки для приседаний и жима
A133: IK226 Стойка для жима лежа и приседаний | D133: 11,200 | K133: =D133*F133 -> 0
A134: IK227 Стойка для жима лежа и приседаний со страховкой | D134: 12,300 | K134: =D134*F134 -> 0
A135: Шведские стенки
A136: IK309 Шведская стенка | D136: 6,636
A137: IK319 Шведская стенка с турником | D137: 11,882
A138: IK323 Шведская стенка | D138: 13,530
A139: IK324 Шведская стенка (составная) | D139: 11,316
A140: IK325 Шведская стенка на свободном весе | D140: 26,912
A141: Стойки для гирь, медболов REGENT | K141: =D141*F141 -> 0
A142: IK 218 Стойка для гирь на 5 пар Стойка для гирь предназначена для хранения соревновательных и любительских гирь. Технические данные Длина, не более, мм………………………………1210 Ширина, не более, мм…………………………….640 Высота, не более, мм ……………………..............645 Вес, не более, кг………………………………..…45 Макс. нагрузка, не более, кг……………………...200 | C142: 6,866 | D142: 9,881 | G142: 45.0 | H142: 0.6 | I142: =F142*G142 -> 0 | J142: =F142*H142 -> 0.0 | K142: 0
A143: IK 219 Стойка для медболов на 12 шт Стойка для медболов предназначена для хранения медболов Технические данные Длина, не более, мм………………………………1430 Ширина, не более, мм…………………………….840 Высота, не более, мм ……………………..............1410 Вес, не более, кг………………………………..…43 Макс. нагрузка, не более, кг……………………...200 | C143: 7,682 | D143: 11,054 | G143: 42.1 | H143: 0.3 | I143: =F143*G143 -> 0 | J143: =F143*H143 -> 0.0 | K143: 0
A144: Серия KAIZER | K144: 0
A145: Вернуться к оглавлению | K145: 0
A146: Грузоблочные тренажеры KAIZER | K146: 0
A147: NL 01 Кроссовер Кроссовер – многофункциональный тренажер для проработки всех групп мышц. Технические данные Длина, не более, мм………………………………1860 Ширина, не более, мм…………………………… 1165 Высота, не более, мм ……………………...............2345 Вес, не более, кг………………………………..….430 Макс. нагрузка, не более, кг……………………....150 | C147: 135,890 | D147: 195,559 | G147: 428.9 | I147: =F147*G147 -> 0 | J147: =F147*H147 -> 0.0 | K147: 0
A148: NL 02 Тяга сверху Верхняя тяга, рекомендуется для занятий спортом в спортзале и т.п. и предназначена для тренировки широчайшей и круглой мышц спины, бицепсов. Технические данные Длина, не более, мм……………………………….1420 Ширина, не более, мм……………………………..1215 Высота, не более, мм ……………………..............2385 Вес, не более, кг………………………………..……230 Макс.нагрузка, не более, кг…………………….......150 | C148: 90,629 | D148: 130,424 | G148: 227.6 | I148: 0 | J148: 0.0 | K148: 0
A149: NL 03 Горизонтальная тяга Горизонтальная тяга, рекомендуется для занятий спортом в спортзале и т.п. и предназначена для развития и детализации мышц нижней части спины. также нагружает ромбовидные мышцы, средину и низ трапеций, а также нижнюю область широчайших. Технические данные Длина, не более, мм………………………………1945 Ширина, не более, мм…………………………… 810 Высота, не более, мм ……………………............ 2270 Вес, не более, кг………………………………..…220 Макс.нагрузка, не более, кг……………………...150 | C149: 93,090 | D149: 133,966 | G149: 217.0 | H149: 0.64 | I149: 0 | J149: 0.0 | K149: 0
A150: NL 06 Разгибание ног сидя Разгибание ног, рекомендуется для занятий спортом в спортзале и т.п. и предназначен для прокачки прямой (фронтальной), а также латеральной (боковой) мышцы бедра; детализации и рельефа квадрицепса. Технические данные Длина, не более, мм………………………………1630 Ширина, не более, мм……………………………1080 Высота, не более, мм …………………….............1915 Вес, не более, кг………………………………..…238,5 Макс. нагрузка, не более, кг……………………...150 | C150: 95,230 | D150: 137,045 | G150: 238.1 | I150: 0 | J150: 0.0 | K150: 0
A151: NL 07 Сгибание ног лежа Разгибание ног, рекомендуется для занятий спортом в спортзале и т.п. и предназначен для развития задней поверхности бедра (бицепса бедра) и ягодиц путем сгибания ног лежа. Технические данные Длина, не более, мм………………………………1520 Ширина, не более, мм…………………………….990 Высота, не более, мм …………………….............2060 Вес, не более, кг………………………………..…224,5 Макс.нагрузка, не более, кг……………………...150 | C151: 95,230 | D151: 137,045 | G151: 221.0 | H151: 0.37 | I151: 0 | J151: 0.0 | K151: 0
A152: NL 08 Трицепс машина Трицепс-машина предназначена для проработки данной мышцы. Технические данные Длина, не более, мм……………………………….1150 Ширина, не более, мм…………………………….1065 Высота, не более, мм …………………….............1925 Вес, не более, кг………………………………..…...230 Макс.нагрузка, не более, кг……………………......150 | C152: 95,230 | D152: 137,045 | G152: 227.3 | I152: 0 | J152: 0.0 | K152: 0
A153: NL 09 Бицепс машина Бицепс-машина предназначена для проработки данной мышцы. Технические данные Длина, не более, мм……………………………….1150 Ширина, не более, мм…………………………….1065 Высота, не более, мм …………………….............1925 Вес, не более, кг………………………………..……225 Макс.нагрузка, не более, кг……………………......150 | C153: 93,090 | D153: 133,966 | G153: 226.0 | H153: 1.65 | I153: 0 | J153: 0.0 | K153: 0
A154: NL 10 Баттерфляй-задние дельты Баттерфляй-задние дельты – многофункциональный тренажер для проработки всех мышц груди, трапеции, задних дельт и мышц плеча. Технические данные Длина, не более, мм………………………………1450 Ширина, не более, мм…………………………… 1230 Высота, не более, мм ……………………...............2250 Вес, не более, кг………………………………..….260 Макс. нагрузка, не более, кг……………………....150 | C154: 100,259 | D154: 144,283 | G154: 257.6 | I154: 0 | J154: 0.0 | K154: 0
A155: NL 11 Жим от груди Жим от груди предназначен для изолированного развития грудных мышц. Технические данные Длина, не более, мм………………………………1480 Ширина, не более, мм……………………………1010 Высота, не более, мм …………………….............1915 Вес, не более, кг………………………………..…262 Макс.нагрузка, не более, кг……………………...150 | C155: 114,490 | D155: 164,763 | G155: 262.0 | I155: 0 | J155: 0.0 | K155: 0
A156: NL 12 Сведение-разведение ног Сведение-разведение ног, рекомендуется для занятий спортом в спортзале и т.п. и предназначен для тренировки внешней поверхности бедра – мышц абдукторов. Технические данные Длина, не более, мм………………………………1495 Ширина, не более, мм……………………………1840 Высота, не более, мм …………………….............1915 Вес, не более, кг………………………………..…235,5 Макс.нагрузка, не более, кг……………………...150 | C156: 105,930 | D156: 152,444 | G156: 238.4 | I156: 0 | J156: 0.0 | K156: 0
A157: NL 13 Гравитрон Тренажер с контрбалансом для облегчения веса спортсмена, предназначен для проработки мышц груди, спины, трицепсов и бицепсов. Технические данные Длина, не более, мм………………………………1705 Ширина, не более, мм……………………………1105 Высота, не более, мм …………………….............2430 Вес, не более, кг…………………………………..275,5 Макс. нагрузка, не более, кг……………………..120 | C157: 125,190 | D157: 180,161 | G157: 275.1 | I157: 0 | J157: 0.0 | K157: 0
A158: NL 14 Кроссовер Кроссовер – многофункциональный тренажер для проработки всех групп мышц. Технические данные Длина, не более, мм………………………………2950 Ширина, не более, мм…………………………… 1165 Высота, не более, мм ……………………...............2400 Вес, не более, кг………………………………..….465 Макс. нагрузка, не более, кг……………………....200 | C158: 125,190 | D158: 180,161 | G158: 445.0 | H158: 1.03 | I158: 0 | J158: 0.0 | K158: 0
A159: NL 16 Глют-машина Вес стека 60 кг. Профиль (мм) 100*50*3 | C159: 105,609 | D159: 151,982 | K159: 0
A160: Тренажеры на свободном весе KAIZER | K160: 0
A161: NL 301 Машина Смитта Машина Смитта, рекомендуется для занятий спортом в спортзале и т.п., и предназначена для выполнения всех видов жима и приседаний. Технические данные Длина, не более, мм………………………………2320 Ширина, не более, мм……………………………1500 Высота, не более, мм …………………….............2240 Вес, не более, кг………………………………..…272 Макс.нагрузка, не более, кг……………………....500 | C161: 118,440 | D161: 170,447 | G161: 208.0 | H161: 0.83 | I161: =F161*G161 -> 0 | J161: =F161*H161 -> 0.0 | K161: 0
A162: NL 302 Жим ногами Тренажер жим ногами предназначен для упражнений на развитие мышц ног. Данный тренажер позволяет прорабатывать разные мышечные группы, например такие как: квадрицепс; внутреннюю и заднюю поверхности бедра; ягодичные мышцы. Технические данные Длина, не более, мм………………………………2150 Ширина, не более, мм……………………………1720 Высота, не более, мм …………………….............1539 Вес, не более, кг………………………………..…270 Макс.нагрузка, не более, кг……………………...600 | C162: 118,800 | D162: 170,965 | G162: 266.0 | H162: 6.69 | I162: 0 | J162: 0.0 | K162: 0
A163: NL 303 Гакк машина Гакк-машина, рекомендуется для занятий спортом в спортзале и т.п., и предназначена для изолированной проработки квадрицепса и ягодичных мышц. Технические данные Длина, не более, мм………………………………2320 Ширина, не более, мм……………………………1500 Высота, не более, мм …………………….............2240 Вес, не более, кг………………………………..…272 Макс.нагрузка, не более, кг……………………....500 | C163: 118,800 | D163: 170,965 | G163: 198.0 | H163: 5.15 | I163: 0 | J163: 0.0 | K163: 0
A164: NL 305 Стан для приседаний Стан для приседаний предназначен для безопасных приседаний со штангой, а дополнительные накопители по бокам стойки предназначены для близкого и удобного расположения весов. Технические данные Длина, не более, мм………………………………1705 Ширина, не более, мм……………………………1530 Высота, не более, мм …………………….............1780 Вес, не более, кг………………………………..…130 Макс.нагрузка, не более, кг……………………...300 | C164: 53,640 | D164: 77,193 | G164: 129.4 | I164: 0 | J164: 0.0 | K164: 0
A165: NL 307 Рычажная тяга Рычажная тяга предназначена для изолированной проработки широчайшей мышцы спины и мышцы вдоль позвоночника. Технические данные Длина, не более, мм………………………………1765 Ширина, не более, мм……………………………1275 Высота, не более, мм …………………….............1100 Вес, не более, кг………………………………..…113,6 Макс.нагрузка, не более, кг……………………...350 | C165: 47,586 | D165: 68,481 | G165: 114.0 | H165: 2.17 | I165: 0 | J165: 0.0 | K165: 0
A166: NL 308 Верхняя тяга Тренажер верхняя тяга предназначен для упражнений на развитие верхних грудных мышц, дельтовидных мышц, а так же бицепс рук. Тренажер предназначен для занятий со свободными весами. Технические данные Длина, не более, мм………………………………1930 Ширина, не более, мм……………………………1180 Высота, не более, мм …………………….............2045 Вес, не более, кг………………………………..…125 Макс.нагрузка, не более, кг……………………...250 | C166: 57,240 | D166: 82,374 | G166: 125.0 | I166: 0 | J166: 0.0 | K166: 0
A167: NL 309 Силовая рама Силовая рама для приседаний предназначена для безопасных приседаний со штангой. Технические данные Длина, не более, мм………………………………1680 Ширина, не более, мм…………………………….17300 Высота, не более, мм ……………………..............2398 Вес, не более, кг………………………………...…230 Макс. нагрузка, не более, кг……………………...500 | C167: 71,640 | D167: 103,097 | G167: 230.0 | I167: 0 | K167: 0
A168: Скамьи KAIZER | K168: 0
A169: NL 101 Скамья для жима лежа Скамья для жима лежа, рекомендуется для занятий спортом в спортзале и т.п. и предназначен для развития дельтовидных мышц, а также для активного развития мышц груди. Технические данные Длина, не более, мм………………………………1640 Ширина, не более, мм…………………………….1526 Высота, не более, мм ……………………..............1300 Вес, не более, кг………………………………..…112 Макс. нагрузка, не более, кг……………………...300 | C169: 33,350 | D169: 47,994 | G169: 111.4 | I169: =F169*G169 -> 0 | J169: =F169*H169 -> 0.0 | K169: 0
A170: NL 102 Скамья для жима лежа под углом Наклонная скамья для жима лежа, рекомендуется для занятий спортом в спортзале и т.п. и предназначена для тренировки мышц грудной клетки, бицепс мышц, верхнего плечевого пояса. Технические данные Длина, не более, мм………………………………1925 Ширина, не более, мм…………………………….1525 Высота, не более, мм ……………………..............1420 Вес, не более, кг………………………………..…136 Макс. нагрузка, не более, кг……………………...150 | C170: 44,505 | D170: 64,047 | G170: 122.0 | H170: 0.92 | I170: =F170*G170 -> 0 | J170: =F170*H170 -> 0.0 | K170: 0
A171: NL 104 Скамья горизонтальная Скамья горизонтальная, рекомендуется для занятий спортом в спортзале и т.п. и предназначена для упражнений с гантелями и тренировки мышц брюшного пресса. Технические данные Длина, не более, мм………………………………1380 Ширина, не более, мм…………………………….665 Высота, не более, мм ……………………..............415 Вес, не более, кг………………………………..…27 Макс. нагрузка, не более, кг……………………...300 | C171: 13,685 | D171: 19,694 | G171: 26.1 | I171: =F171*G171 -> 0 | J171: =F171*H171 -> 0.0 | K171: 0
A172: NL 105 Скамья с изменяемым углом наклона спинки Скамья с изменяемым наклоном спинки, рекомендуется для занятий спортом в спортзале и т.п. и предназначена для тренировки мышц спины, брюшного пресса, верхнего плечевого пояса. Технические данные Длина, не более, мм………………………………1365 Ширина, не более, мм…………………………….660 Высота, не более, мм ……………………..............1220 Вес, не более, кг………………………………..…40 Макс. нагрузка, не более, кг……………………...100 | C172: 22,885 | D172: 32,934 | G172: 38.0 | H172: 0.43 | I172: =F172*G172 -> 0 | J172: =F172*H172 -> 0.0 | K172: 0
A173: NL 106 Скамья Скотта Скамья Скотта предназначена для тренировки бицепса со штангой или гантелями. Технические данные Длина, не более, мм………………………………1000 Ширина, не более, мм……………………………930 Высота, не более, мм …………………….............1005 Вес, не более, кг………………………………..…54 Макс.нагрузка, не более, кг……………………...150 | C173: 34,155 | D173: 49,152 | G173: 53.9 | I173: =F173*G173 -> 0 | J173: =F173*H173 -> 0.0 | K173: =D173*F173 -> 0
A174: Под собственным весом KAIZER | K174: 0
A175: NL 103 Скамья для пресса регулируемая Скамья для пресса регулируемая, рекомендуется для занятий спортом в спортзале и т.п., и предназначена для тренировки прямых и косых мышц брюшного пресса. Технические данные Длина, не более, мм………………………………1545 Ширина, не более, мм…………………………….725 Высота, не более, мм …………………….............1330 Вес, не более, кг………………………………..…46 Макс. нагрузка, не более, кг……………………..120 | C175: 25,870 | D175: 37,230 | G175: 45.8 | I175: =F175*G175 -> 0 | J175: =F175*H175 -> 0.0 | K175: 0
A176: NL107 Римский стул Скамья римская предназначена для развития прямых и косых мышц пресса. Технические данные Длина, не более, мм………………………………1106 Ширина, не более, мм…………………………….780 Высота, не более, мм ……………………..............760 Вес, не более, кг………………………………..…34 Макс. нагрузка, не более, кг……………………...180 | C176: 36,010 | D176: 51,822 | G176: 34.0 | I176: =F176*G176 -> 0 | J176: =F176*H176 -> 0.0 | K176: 0
A177: NL 304 Гиперэкстензия 45' Гиперэкстензия под углом 45 градусов, рекомендуется для занятий спортом в спортзале и т.п. и предназначена для проработки мышц спины и икроножных мышц ног. Технические данные Длина, не более, мм………………………………1315 Ширина, не более, мм…………………………….760 Высота, не более, мм ……………………..............865 Вес, не более, кг………………………………..…45 Макс. нагрузка, не более, кг……………………...150 | C177: 25,610 | D177: 36,855 | G177: 44.0 | I177: =F177*G177 -> 0 | J177: =F177*H177 -> 0.0 | K177: 0
A178: NL 306 Пресс-брусья Тренажер пресс – брусья предназначен для выполнения упражнений на брюшной пресс, грудные мышцы, трицепс. Технические данные Длина, не более, мм………………………………955 Ширина, не более, мм…………………………….825 Высота, не более, мм ……………………..............1610 Вес, не более, кг………………………………..…85 Макс. нагрузка, не более, кг……………………...200 | C178: 42,770 | D178: 61,550 | G178: 81.0 | H178: 0.52 | I178: =F178*G178 -> 0 | J178: =F178*H178 -> 0.0 | K178: 0
A179: Стойки KAIZER | K179: 0
A180: NL 201 Стойка для дисков Стойка для дисков предназначена для хранения дисков различной массы. Технические данные Ширина, не более, мм……………………………865 Высота, не более, мм …………………….............1225 Вес, не более, кг………………………………..…38 Макс.нагрузка, не более, кг……………………...150 | C180: 20,895 | D180: 30,070 | G180: 37.3 | I180: =F180*G180 -> 0 | J180: =F180*H180 -> 0.0 | K180: 0
A181: NL 202 Стойка для гантелей 2 яруса на 10 пар Стойка для гантелей предназначена для хранения профессиональных гантелей. Технические данные Длина, не более, мм………………………………2545 Ширина, не более, мм…………………………….660 Высота, не более, мм ……………………..............820 Вес, не более, кг………………………………..…76 Макс. нагрузка, не более, кг……………………...500 | C181: 31,185 | D181: 46,795 | G181: 75.8 | I181: =F181*G181 -> 0 | J181: =F181*H181 -> 0.0 | K181: 0
A182: NL 203 Стойка для гантелей 3 яруса на 9 пар Стойка для гантелей предназначена для хранения профессиональных гантелей. Технические данные Длина, не более, мм………………………………1665 Ширина, не более, мм…………………………….655 Высота, не более, мм …………………….............1010 Вес, не более, кг………………………………..….86 Макс. нагрузка, не более, кг……………………...500 | C182: 41,685 | D182: 62,552 | G182: 86.0 | I182: =F182*G182 -> 0 | J182: =F182*H182 -> 0.0 | K182: 0
A183: NL 204 Стойка для грифов 10 мест Стойка для грифов 10 мест предназначена для хранения грифов штанг. Технические данные Длина, не более, мм………………………………865 Ширина, не более, мм……………………………1100 Высота, не более, мм …………………….............1360 Вес, не более, кг………………………………..…94 Макс.нагрузка, не более, кг……………………...150 | C183: 20,685 | D183: 29,767 | G183: 93.6 | I183: =F183*G183 -> 0 | J183: =F183*H183 -> 0.0 | K183: 0
A184: Серия GERZOG тренажеры на свободных весах | K184: 0
A185: Вернуться к оглавлению | K185: 0
A186: FW 001 Жим от груди Тренажер для изолированной проработки передней и средней дельт, трапеции. Основной профиль – 120х60х3 мм; Дополнительный профиль – 100х50х3 мм; ДхШхВ – 1490х1135х1515, высота в рабочем состоянии – 1800 мм; Вес – 164 кг; Максимальная нагрузка – 300 кг.(150 кг на одно "крыло") | C186: 128,700 | D186: 185,212 | I186: =F186*G186 -> 0 | J186: =F186*H186 -> 0.0 | K186: 0
A187: FW 002 Жим от груди под углом вниз Помогает развить верхнюю часть мышц груди, рук и плечевых суставов Основной профиль – 120х60х3 мм; Дополнительный профиль – 100х50х3 мм; ДхШхВ – 1225х1595х1770 мм; Вес тренажера – 198 кг; Максимальная нагрузка – 300 кг. | C187: 128,700 | D187: 185,212 | I187: 0 | J187: 0.0 | K187: 0
A188: FW 003 Жим от груди под углом вверх Тренажер для прокачки верхней части мышц груди, рук, плечевых суставов. Основной профиль – 120х60х3 мм; Дополнительный профиль – 100х50х3 мм; ДхШхВ – 1115х1900х1800 мм; Вес – 202, 5 кг; Максимальная нагрузка – 300 кг. | C188: 128,700 | D188: 185,212 | I188: 0 | J188: 0.0 | K188: 0
A189: FW 004 Жим с плеч Основной профиль – 120х60х3 мм; Дополнительный профиль – 100х50х3 мм. | C189: 128,700 | D189: 185,212 | I189: 0 | J189: 0.0 | K189: 0
A190: FW 005 Трицепс машина Тренажер помогает развить трицепсы, мышцы рук и груди Основной профиль – 120х60х3 мм; Дополнительный профиль – 100х50х3 мм. | C190: 128,700 | D190: 185,212 | I190: 0 | J190: 0.0 | K190: 0
A191: FW 006 Тяга к себе с разным хватом Для изолированной проработки широчайших мышц спины и верхней части трапециевидных мышц. Основной профиль – 120х60х3 мм; Дополнительный профиль – 100х50х3 мм. | C191: 128,700 | D191: 185,212 | I191: 0 | J191: 0.0 | K191: 0
A192: FW 007 Рычажная тяга Для изолированной прокачки широчайшей мышцы спины и мышцы вдоль позвоночника Основной профиль – 120х60х3 мм; Дополнительный профиль – 100х50х3 мм. | C192: 128,700 | D192: 185,212 | I192: 0 | J192: 0.0 | K192: 0
A193: FW 008 Тренажер для ягодичных мышц На этом тренажере выполняются упражнения по прокачке мышц ягодиц, ног и таза, бицепсов бедер Основной профиль – 120х60х3 мм; Дополнительный профиль – 100х50х3 мм; ДхШхВ – 1365х1190х1595 мм; Вес – 160 кг; Максимальная нагрузка – 150 кг. | C193: 128,700 | D193: 185,212 | I193: 0 | J193: 0.0 | K193: 0
A194: FW 009 Стойка для дисков | D194: 0 | K194: 0
A195: Серия IMPERATOR | K195: 0
A196: Вернуться к оглавлению | K196: 0
A197: Грузоблочные тренажеры IMPERATOR | K197: 0
A198: IKL-1002 Разгибание ног сидя Разгибание ног, рекомендуется для занятий спортом в спортзале и т.п. и предназначен для прокачки прямой (фронтальной), а также латеральной (боковой) мышцы бедра; детализации и рельефа квадрицепса. Технические данные Габаритные размеры (ДхШхВ), мм……..1100*1100*1500 Масса, кг……............................................210 Стек, кг……................................................95 | C198: 110,400 | D198: 158,877 | G198: 210.0 | I198: =F198*G198 -> 0 | J198: =F198*H198 -> 0.0 | K198: 0
A199: IKL-1004 Рычажная тяга Рычажная тяга предназначена для изолированной проработки широчайшей мышцы спины и мышцы вдоль позвоночника. Технические данные Габаритные размеры (ДхШхВ), мм……..1210*1050*1500 Масса, кг……………………………………....209 Стек, кг………………………………………....95 | C199: 110,400 | D199: 158,877 | G199: 209.0 | I199: 0 | J199: 0.0 | K199: 0
A200: IKL-1011 Трицепс-машина Трицепс-машина предназначена для проработки данной мышцы. Технические данные Габаритные размеры (ДхШхВ), мм……..1500*1050*1500 Масса, кг………………………………………172 Стек, кг………………………………………….70 | C200: 110,400 | D200: 158,877 | G200: 172.0 | I200: 0 | J200: 0.0 | K200: 0
A201: IKL-1012 Жим от плеч Тренажер предназначен для выполнения упражнений на поднимающую мышцу, трапецию, дельтовидную мышцу Технические данные Габаритные размеры (ДхШхВ), мм……..1450*950*1500 Масса, кг………………………………………188 Стек, кг………………………………………….65 | C201: 110,400 | D201: 158,877 | G201: 188.0 | I201: 0 | J201: 0.0 | K201: 0
A202: IKL-1014 Сведение ног Сведение-разведение ног, рекомендуется для занятий спортом в спортзале и т.п. и предназначен для тренировки внешней поверхности бедра – мышц абдукторов. Технические данные Габаритные размеры (ДхШхВ), мм……..1450*970*1500 Масса, кг………………………………………183 Стек, кг………………………………………….70 | C202: 110,400 | D202: 158,877 | G202: 183.0 | I202: 0 | J202: 0.0 | K202: 0
... 817 more rows
